bitfinex-derivatives/quotes_ETHF0:USTF0_20260131
["timestamp","ask_amount","ask_price","bid_price","bid_amount"]
[1769848847802,2.44889834,2617.0,2611.6,3.89154597]
[1769848847992,3.79220392,2614.7,2609.0,3.809]
[1769848848187,3.62880167,2614.5,2609.1,2.42494]
[1769848848491,3.62880167,2612.0,2606.7,0.18300356]
[1769848848692,3.62880167,2611.5,2607.7,5.79630792]
[1769848848892,4.0876113,2611.9,2609.7,3.14630792]
[1769848849198,4.0876113,2611.4,2609.7,0.00472631]
[1769848849396,3.62880167,2611.7,2610.0,3.14630792]
[1769848849599,0.38332,2613.1,2609.7,0.00472631]
[1769848849600,2.04080619,2617.3,2611.1,3.89154597]
[1769848849896,2.829,2617.2,2613.6,3.89154597]
[1769848850102,4.19632,2619.9,2615.9,3.89154597]
[1769848850291,3.814,2620.8,2616.1,3.89154597]
[1769848850502,3.814,2620.8,2612.3,0.73522248]
[1769848850503,4.18462811,2619.1,2616.3,3.89154597]
[1769848850690,0.219,2620.2,2616.5,3.89154597]
[1769848850890,4.18462811,2620.7,2616.7,3.89154597]
[1769848851095,4.18462811,2619.7,2616.7,3.89154597]
[1769848851304,0.19103,2621.7,2616.3,0.00357036]
[1769848851305,4.18462811,2620.1,2616.3,0.00357036]
[1769848851501,0.1913,2618.0,2611.9,3.89154597]
[1769848851704,3.62880167,2615.6,2611.3,3.89154597]
[1769848851899,3.62880167,2615.4,2611.3,3.89154597]
[1769848852101,3.62880167,2615.2,2611.5,3.89154597]
[1769848852402,3.62880167,2615.2,2609.6,0.19191]
[1769848852403,3.62880167,2612.4,2608.9,3.89154597]
[1769848852597,3.62880167,2612.4,2609.1,3.89154597]
[1769848853000,4.2470189,2612.3,2609.1,3.89154597]
[1769848853197,3.62880167,2614.5,2610.4,3.89154597]
[1769848853405,3.62880167,2614.5,2610.6,3.89154597]
[1769848853600,4.0201932,2614.4,2610.6,3.89154597]
[1769848853797,0.00481735,2614.5,2610.6,3.89154597]
[1769848853999,0.00481735,2614.5,2610.8,3.89154597]
[1769848854294,3.62880167,2621.2,2614.5,3.89154597]
[1769848854499,3.62880167,2621.2,2616.0,3.89154597]
[1769848854700,3.62880167,2621.0,2616.2,3.89154597]
[1769848854901,3.62880167,2621.0,2616.4,3.89154597]
[1769848855103,3.62880167,2620.8,2616.6,3.89154597]
[1769848855511,0.003174,2621.0,2616.5,5.72089834]
[1769848855512,3.97609004,2620.7,2617.5,3.89154597]
[1769848855704,0.003174,2621.0,2617.5,3.89154597]
[1769848855902,3.62880167,2622.2,2617.8,3.89154597]
[1769848856205,3.97609004,2621.4,2618.7,3.89154597]
[1769848856601,0.89901538,2622.1,2618.7,3.89154597]
[1769848856800,3.62880167,2622.2,2618.7,3.89154597]
[1769848857106,4.33437452,2622.1,2618.9,3.89154597]
[1769848857302,3.62880167,2622.0,2618.9,3.89154597]
[1769848857513,3.62880167,2621.9,2619.0,9.95054597]
[1769848857802,3.62880167,2621.8,2619.1,7.16254597]
[1769848858001,4.30439579,2621.9,2619.2,3.89154597]
[1769848858199,4.30439579,2621.7,2619.2,3.89154597]
[1769848858396,0.00397176,2622.2,2619.2,3.89154597]
[1769848858700,3.62880167,2622.0,2619.4,3.89154597]
[1769848859003,3.62880167,2621.6,2619.4,3.89154597]
[1769848859196,3.62880167,2621.6,2619.5,3.89154597]
[1769848859401,4.00740066,2622.0,2619.5,3.89154597]
[1769848859702,4.42008996,2621.5,2619.6,3.819]
[1769848859895,8.04889163,2621.8,2619.7,3.89154597]
[1769848860098,3.62880167,2621.8,2619.7,3.89154597]
[1769848860299,3.62880167,2621.6,2619.8,3.819]
[1769848860504,0.19105,2621.5,2619.9,3.819]
[1769848860704,4.36354362,2621.5,2619.5,3.89154597]
[1769848860906,3.81985167,2621.5,2619.5,3.89154597]
[1769848861098,3.81985167,2621.5,2619.6,3.819]
[1769848861301,4.33982343,2621.4,2619.6,3.819]
[1769848861702,0.00397176,2622.2,2619.7,3.89154597]
[1769848861903,3.62880167,2622.0,2619.7,3.89154597]
[1769848862106,3.81989167,2620.9,2618.8,7.71054597]
[1769848862503,3.819,2621.6,2618.7,0.00482644]
[1769848862504,4.02067207,2620.6,2618.7,0.00482644]
[1769848862703,3.819,2621.6,2618.7,0.00482644]
[1769848862704,0.19103,2621.7,2618.7,3.89637241]
[1769848862910,4.07022962,2621.5,2618.7,3.69093241]
[1769848863112,4.07022962,2621.6,2618.7,3.69093241]
[1769848863314,0.19103,2621.7,2618.7,3.69093241]
[1769848863509,0.19107,2621.1,2618.8,3.819]
[1769848863710,3.81987167,2621.1,2618.8,3.819]
[1769848863907,4.11832559,2621.0,2618.9,3.819]
[1769848864111,4.11832559,2621.0,2619.0,3.819]
[1769848864311,4.11832559,2621.0,2616.1,0.19143]
[1769848864312,3.62880167,2620.8,2616.6,0.1914]
[1769848864506,3.62880167,2620.3,2616.7,32.792]
[1769848864813,0.87999851,2620.2,2616.8,3.89154597]
[1769848865111,0.88335066,2620.2,2616.8,3.89392956]
[1769848865409,0.88335066,2620.2,2617.0,3.89154597]
[1769848865410,0.19116,2619.9,2617.0,3.89154597]
[1769848865712,3.99568237,2619.8,2617.0,3.89154597]
[1769848866714,0.00335215,2620.2,2617.0,3.89154597]
[1769848866912,3.96798444,2619.6,2617.5,3.68768567]
[1769848867214,4.21755248,2620.1,2617.6,3.68768567]
[1769848867412,0.00335215,2620.2,2617.8,3.87899567]
[1769848867617,3.96784444,2621.4,2617.8,3.87899567]
[1769848867918,4.00331814,2621.3,2618.9,3.68768567]
[1769848868217,7.78011258,2621.9,2619.1,3.68768567]
[1769848868416,3.96781444,2621.8,2619.3,3.68768567]
[1769848868720,4.23391456,2621.7,2619.3,3.69219899]
[1769848869118,0.19103,2621.7,2619.3,3.69219899]
[1769848869416,0.19103,2621.7,2619.5,3.68768567]
[1769848869809,4.08228254,2621.6,2619.5,3.68768567]
[1769848870010,4.02067207,2621.5,2619.6,7.077]
[1769848870210,4.08228254,2621.6,2619.6,7.077]
[1769848870211,4.02067207,2621.4,2619.6,10.76468567]
[1769848870415,8.10295461,2621.4,2619.6,3.68768567]
[1769848870611,3.77679444,2621.7,2619.6,3.68768567]
[1769848870612,3.77679444,2621.7,2619.8,3.68768567]
[1769848870816,7.79746651,2621.7,2619.8,3.68768567]
[1769848871016,4.02067207,2621.6,2619.9,3.819]
[1769848871417,4.02067207,2621.5,2620.0,3.819]
[1769848871616,4.02067207,2621.6,2620.0,3.819]
[1769848871819,3.77679444,2621.7,2620.0,3.819]
[1769848872022,4.21174207,2621.1,2619.4,3.25]
[1769848872215,0.19107,2621.1,2619.7,3.819]
[1769848872618,0.00309938,2621.8,2619.8,3.68768567]
[1769848873129,4.02067207,2621.4,2619.8,3.68768567]
[1769848873326,4.02067207,2621.5,2619.8,3.68768567]
[1769848873521,4.02067207,2621.4,2619.8,3.68768567]
[1769848873717,4.28270265,2621.5,2619.8,3.68768567]
[1769848873917,0.19098,2622.4,2619.8,3.68768567]
[1769848874125,3.77679444,2621.8,2619.8,7.50568567]
[1769848874430,4.28270265,2622.1,2620.4,0.19112]
[1769848874624,0.18127069,2624.5,2621.5,0.28396565]
[1769848874829,2.11145515,2626.5,2622.9,0.55969496]
[1769848875025,5.92945515,2627.2,2623.1,0.55969496]
[1769848875328,0.1907,2626.2,2623.3,0.5454076]
[1769848875827,0.00476691,2627.2,2624.5,0.5454076]
[1769848876025,0.19051,2628.8,2625.0,0.5454076]
[1769848876225,0.19052,2628.7,2625.0,0.5454076]
[1769848876423,0.19052,2628.7,2624.7,6.311]
[1769848876424,4.1638583,2628.4,2625.3,0.5454076]
[1769848876624,0.19052,2628.7,2625.3,0.5454076]
[1769848876825,3.77679444,2628.6,2625.5,0.5454076]
[1769848877024,3.77679444,2628.4,2625.5,0.54988881]
[1769848877432,3.77679444,2628.2,2625.5,0.54988881]
[1769848877620,0.00388392,2628.6,2625.5,0.54988881]
[1769848877825,0.00388392,2628.6,2625.8,0.52502376]
[1769848878026,3.77679444,2628.4,2625.9,6.056]
[1769848878628,3.77679444,2628.2,2625.5,0.00448121]
[1769848878828,3.77679444,2628.2,2625.7,3.816]
[1769848879029,3.77679444,2628.0,2625.7,3.816]
[1769848879229,3.77679444,2628.0,2625.8,3.815]
[1769848879425,3.77679444,2627.8,2625.8,3.815]
[1769848879821,3.77679444,2627.8,2625.8,4.33581637]
[1769848880029,3.77679444,2627.6,2625.8,3.815]
[1769848880234,3.77679444,2627.6,2625.5,0.00448121]
[1769848880432,3.77679444,2627.4,2625.5,0.00448121]
[1769848880732,3.77679444,2626.8,2624.0,0.52081637]
[1769848880923,7.88716056,2627.6,2623.4,6.57181637]
[1769848880924,3.77679444,2626.1,2623.4,6.57181637]
[1769848881232,3.77679444,2626.7,2623.8,0.50912034]
[1769848881433,3.77679444,2626.7,2624.2,0.50912034]
[1769848881636,3.78057224,2626.7,2624.2,0.51243148]
[1769848882029,0.19054,2628.4,2625.0,3.68768567]
[1769848882225,0.19054,2628.4,2625.2,3.68768567]
[1769848882431,3.814,2628.9,2625.2,3.68768567]
[1769848882432,0.19061,2627.5,2625.2,3.68768567]
[1769848882631,3.814,2627.6,2625.0,3.814]
[1769848882934,4.31529529,2627.4,2624.2,0.00331114]
[1769848883129,3.814,2627.3,2624.2,0.00331114]
[1769848883434,0.19066,2626.7,2622.4,3.68768567]
[1769848883632,4.21502001,2628.4,2626.2,0.19069]
[1769848883829,0.19046,2629.6,2626.2,0.19069]
[1769848884040,4.0143539,2628.3,2626.2,0.19069]
[1769848884232,3.94594191,2628.3,2626.3,3.813]
[1769848884434,3.94594191,2628.3,2625.2,2.44889834]
[1769848884632,3.94594191,2628.2,2625.6,0.19074]
[1769848885239,0.00453587,2628.3,2625.8,3.68768567]
[1769848885630,4.28286433,2628.1,2625.9,3.812]
[1769848885836,4.28286433,2628.2,2625.9,3.812]
[1769848886037,0.00453587,2628.3,2625.9,3.812]
[1769848886240,4.28286433,2628.2,2625.9,3.812]
[1769848886834,4.28286433,2628.2,2626.4,0.19068]
[1769848887437,3.77679444,2628.1,2626.4,0.19068]
[1769848887839,8.00039042,2628.0,2626.4,0.19068]
[1769848888141,0.00453587,2628.3,2626.4,3.87836567]
[1769848888542,0.00453587,2628.3,2626.5,0.19068]
[1769848888847,3.77679444,2629.8,2627.8,3.68768567]
[1769848889140,0.17953782,2630.3,2626.4,0.19068]
[1769848889141,0.17953782,2630.3,2628.7,3.68768567]
[1769848889342,0.17953782,2630.3,2629.0,3.87817567]
[1769848889637,0.17505661,2630.3,2629.2,3.68768567]
[1769848889839,3.77679444,2631.4,2629.2,3.6908587]
[1769848890244,3.77679444,2631.4,2629.5,3.68768567]
[1769848890433,3.77679444,2631.4,2629.6,6.94268567]
[1769848890834,3.78049074,2631.4,2629.7,3.68768567]
[1769848891039,0.0036963,2631.4,2629.7,3.68768567]
[1769848891240,0.0036963,2631.4,2629.9,3.68768567]
[1769848891547,3.77679444,2632.0,2630.1,3.87809567]
[1769848891740,3.77679444,2632.6,2630.3,3.68768567]
[1769848891940,3.77679444,2632.6,2630.3,3.87808567]
[1769848892141,3.81,2633.3,2629.2,0.00317303]
[1769848892142,3.77679444,2632.3,2629.2,0.00317303]
[1769848892447,3.77679444,2631.7,2629.2,0.00317303]
[1769848892942,0.00296178,2632.3,2629.9,0.19043]
[1769848893150,0.00296178,2632.3,2629.5,3.68768567]
[1769848893442,0.00296178,2632.3,2629.7,3.68768567]
[1769848893634,0.00296178,2632.3,2629.8,3.808]
[1769848894746,0.00296178,2632.3,2629.9,3.68768567]
[1769848894953,3.77679444,2633.2,2630.6,3.68768567]
[1769848895249,3.96698444,2633.2,2630.6,3.68768567]
[1769848895943,3.9718213,2633.2,2630.7,3.807]
[1769848896450,3.77679444,2632.7,2630.3,3.68768567]
[1769848897145,3.77679444,2632.7,2629.2,3.66425282]
[1769848897345,3.80104121,2631.6,2629.2,3.66425282]
[1769848897552,3.80104121,2631.5,2629.2,3.66425282]
[1769848897744,3.80104121,2631.1,2629.2,0.00317303]
[1769848898045,3.80487877,2631.1,2629.2,0.00317303]
[1769848899752,3.80487877,2631.1,2629.2,3.85941197]
[1769848899947,3.80487877,2631.1,2629.2,4.04989197]
[1769848901548,3.80487877,2631.1,2629.3,0.19047]
[1769848901549,0.00383756,2631.1,2629.3,0.19047]
[1769848901749,0.00383756,2631.1,2629.4,4.04670894]
[1769848901947,3.84603376,2632.4,2630.3,3.85623894]
[1769848902547,3.806,2632.9,2630.3,3.85623894]
[1769848902548,3.84603376,2632.2,2630.3,3.85623894]
[1769848903053,0.0045814,2632.2,2630.5,3.85623894]
[1769848903644,0.0045814,2632.2,2630.7,3.85623894]
[1769848903849,0.0045814,2632.2,2630.7,4.04660894]
[1769848904150,3.85061516,2632.2,2630.2,3.85623894]
[1769848904547,3.84603376,2631.9,2629.2,2.4564331]
[1769848904850,3.84603376,2631.4,2629.4,3.85623894]
[1769848905457,3.84603376,2631.4,2629.4,4.04670894]
[1769848906151,3.84603376,2631.4,2629.2,0.00317303]
[1769848906152,3.84603376,2631.4,2629.6,3.85623894]
[1769848906854,3.84603376,2631.1,2629.2,0.00317303]
[1769848907054,3.8105814,2632.2,2629.2,0.00317303]
[1769848907055,3.84603376,2630.8,2629.2,0.00317303]
[1769848907751,3.84603376,2630.8,2629.2,3.85941197]
[1769848907956,3.84603376,2631.6,2629.5,4.04668894]
[1769848908258,3.84603376,2631.6,2629.7,3.85623894]
[1769848908751,3.84603376,2631.6,2630.0,3.85623894]
[1769848908957,3.85061516,2632.2,2630.2,4.04664894]
[1769848909758,3.85061516,2632.2,2630.4,4.04662894]
[1769848909954,0.0045814,2632.2,2631.0,3.85623894]
[1769848910156,3.804,2633.0,2631.4,3.85623894]
[1769848910560,7.65003376,2633.0,2631.4,3.85623894]
[1769848910764,3.84603376,2632.9,2631.2,3.804]
[1769848911057,3.84603376,2632.9,2631.2,3.8072324]
[1769848911058,3.84603376,2632.7,2631.2,3.8072324]
[1769848911263,3.84603376,2632.7,2631.2,7.66347134]
[1769848911453,3.84603376,2632.7,2631.2,3.8072324]
[1769848911854,3.84603376,2632.5,2631.2,0.0032324]
[1769848912050,3.84603376,2632.5,2630.3,3.804]
[1769848912255,3.84603376,2632.5,2630.3,7.66023894]
[1769848912458,0.19027,2632.1,2630.3,7.66023894]
[1769848912658,3.84603376,2632.0,2630.3,3.85623894]
[1769848913054,3.84603376,2632.0,2630.3,0.00367291]
[1769848913250,3.84603376,2631.5,2630.3,0.00367291]
[1769848913654,3.84603376,2631.5,2629.4,0.19046]
[1769848914055,3.84603376,2631.5,2629.5,3.85623894]
[1769848914263,3.84603376,2631.5,2629.5,4.04669894]
[1769848914758,4.03632376,2631.8,2629.8,3.85623894]
[1769848915355,5.61389227,2631.7,2629.8,3.85623894]
[1769848915562,3.84603376,2631.3,2629.5,0.00271925]
[1769848915755,4.03637376,2631.2,2629.5,3.85895819]
[1769848916363,36.30733008,2631.9,2629.5,3.85895819]
[1769848916364,3.84603376,2631.7,2629.5,3.85895819]
[1769848916672,9.47157776,2631.6,2629.5,3.85895819]
[1769848916863,9.47157776,2631.5,2629.5,3.85895819]
[1769848917060,5.625544,2631.4,2629.5,3.85895819]
[1769848917462,5.625544,2631.3,2629.5,3.85895819]
[1769848917665,3.84603376,2631.5,2629.7,3.85623894]
[1769848918266,5.63905044,2631.4,2629.7,3.85623894]
[1769848918467,5.63905044,2631.3,2629.7,3.85623894]
[1769848918665,5.63905044,2631.2,2629.7,3.85623894]
[1769848918967,3.84603376,2631.5,2629.7,3.85623894]
[1769848918968,5.62833739,2631.1,2629.7,3.85623894]
[1769848919165,5.62833739,2631.0,2629.7,3.85623894]
[1769848919365,3.84603376,2630.8,2629.5,0.00271925]
[1769848919868,32.821014,2630.7,2629.5,0.00271925]
[1769848920061,3.84603376,2630.2,2628.5,3.85623894]
[1769848920262,32.821014,2630.8,2628.5,3.85623894]
[1769848920463,0.06397704,2630.6,2628.5,3.85623894]
[1769848920667,0.15906707,2630.7,2629.2,3.85623894]
[1769848920867,3.84603376,2630.4,2628.2,3.85623894]
[1769848921063,36.66704776,2629.9,2628.2,0.0040152]
[1769848921260,9.39323563,2629.8,2628.2,0.0040152]
[1769848921461,5.54720187,2629.7,2628.2,3.86025414]
[1769848921765,4.03649376,2629.5,2628.2,0.0040152]
[1769848921972,3.84603376,2628.9,2627.1,7.66023894]
[1769848922167,3.84603376,2628.7,2626.7,3.85623894]
[1769848922371,1.35338215,2628.8,2626.9,3.85623894]
[1769848922668,3.84603376,2629.0,2626.9,3.85623894]
[1769848922973,3.84603376,2628.6,2626.9,3.86048806]
[1769848923271,11.56984363,2628.5,2626.9,3.86048806]
[1769848923472,3.84603376,2628.4,2626.9,3.86048806]
[1769848923775,3.84603376,2628.2,2626.9,0.00424912]
[1769848924165,0.23897759,2628.1,2626.9,0.00424912]
[1769848925671,4.8008666,2629.3,2627.0,3.85623894]
[1769848925870,3.93602633,2632.2,2630.4,0.19039]
[1769848926066,3.93602633,2632.0,2630.5,3.805]
[1769848926370,3.92929188,2632.0,2630.5,3.99539]
[1769848926874,3.805,2633.3,2630.6,13.73411375]
[1769848926875,0.22991924,2631.3,2630.6,13.73411375]
[1769848927068,0.22991924,2632.2,2630.7,3.98262516]
[1769848927373,53.51399898,2632.8,2632.1,3.49909897]
[1769848927666,2.57777522,2633.3,2631.0,9.75148859]
[1769848927874,2.57777522,2633.3,2628.6,14.71624771]
[1769848927875,0.06614655,2632.9,2629.6,0.19045]
[1769848928067,0.19023,2632.7,2629.9,11.25171761]
[1769848928269,53.69938133,2632.8,2629.9,11.25171761]
[1769848928768,0.19028,2632.1,2629.9,11.2564562]
[1769848929175,43.75138133,2632.0,2629.9,11.2564562]
[1769848929474,0.19035,2631.1,2628.4,14.90677771]
[1769848929661,3.805,2631.0,2628.4,14.90677771]
[1769848929864,47.01750249,2631.0,2628.5,4.1905938]
[1769848930063,43.21250249,2631.0,2628.7,3.93388712]
[1769848930460,43.21250249,2631.0,2628.7,3.93700916]
[1769848930785,43.21250249,2631.0,2628.7,0.00312204]
[1769848931074,6.26626007,2630.8,2627.8,3.93388712]
[1769848931273,3.813,2630.6,2627.8,3.86788712]
[1769848931570,10.12212152,2630.5,2626.9,0.19065]
[1769848931770,0.19047,2629.4,2626.3,2.45326007]
[1769848932079,2.92880028,2629.3,2627.1,2.45326007]
[1769848932371,2.92880028,2629.3,2627.3,0.19062]
[1769848932573,30.02192125,2629.2,2627.5,3.8024]
[1769848932767,30.02192125,2629.2,2627.1,3.805]
[1769848932969,30.02192125,2629.2,2626.5,3.80895038]
[1769848933178,2.80059302,2629.1,2626.7,3.8024]
[1769848933374,0.1905,2629.0,2626.7,3.93388712]
[1769848933671,0.47781878,2628.9,2626.9,3.8024]
[1769848933973,0.47781878,2628.9,2627.0,3.93388712]
[1769848934174,0.47781878,2628.9,2627.3,3.93388712]
[1769848934470,30.02192125,2628.8,2627.3,3.93388712]
[1769848934676,30.02192125,2628.8,2627.4,3.93388712]
[1769848934876,3.93388712,2632.6,2628.7,2.45326007]
[1769848935065,3.93388712,2632.6,2629.8,2.45326007]
[1769848935066,3.93388712,2631.9,2629.8,2.45326007]
[1769848935372,3.93388712,2631.9,2630.2,8.24753635]
[1769848935571,3.91364656,2631.7,2630.2,8.24753635]
[1769848935770,3.91364656,2631.7,2629.9,8.24753635]
[1769848935969,3.91364656,2631.5,2630.1,6.74075364]
[1769848936169,3.91364656,2631.5,2629.9,0.00316208]
[1769848936372,3.91364656,2631.3,2629.9,6.74391572]
[1769848936570,3.91364656,2631.3,2629.9,0.00316208]
[1769848936776,3.91364656,2631.1,2629.9,0.00316208]
[1769848937077,3.91364656,2630.9,2629.9,0.00316208]
[1769848937576,0.00414575,2630.8,2630.1,1.6701188]
[1769848937961,0.00414575,2630.8,2630.2,1.6701188]
[1769848938169,0.00414575,2630.8,2630.1,1.6701188]
[1769848938670,0.00414575,2630.8,2630.2,1.6701188]
[1769848939184,0.00414575,2630.8,2630.4,1.6701188]
[1769848939373,0.00414575,2630.8,2630.5,1.6701188]
[1769848939677,0.00414575,2630.8,2630.2,1.6701188]
[1769848939872,3.93803287,2630.8,2629.9,5.62093394]
[1769848940072,3.93803287,2630.8,2629.9,0.00316208]
[1769848940575,3.93803287,2630.8,2630.1,1.6701188]
[1769848940780,4.01672082,2630.5,2630.4,1.6701188]
[1769848940971,3.93388712,2630.8,2629.9,0.00316208]
[1769848941173,3.93388712,2630.8,2630.0,1.6701188]
[1769848941667,3.93388712,2630.8,2630.2,1.6701188]
[1769848941668,0.00414575,2630.7,2630.2,1.6701188]
[1769848942071,3.80808343,2631.7,2630.5,1.6701188]
[1769848942271,3.80808343,2631.7,2630.2,5.61777186]
[1769848942779,3.80808343,2631.7,2630.1,5.61777186]
[1769848943074,3.80808343,2631.7,2630.2,5.61777186]
[1769848943682,0.00308343,2631.7,2630.2,5.61777186]
[1769848944087,3.85765232,2631.6,2630.2,5.61777186]
[1769848944577,3.85765232,2631.6,2630.1,5.61777186]
[1769848944883,3.85765232,2631.6,2630.1,7.28789066]
[1769848945070,3.85765232,2631.6,2630.2,5.61777186]
[1769848945274,4.04796232,2631.6,2630.1,5.61777186]
[1769848945480,3.87083788,2631.4,2630.0,5.61777186]
[1769848945685,3.86925684,2630.6,2629.2,5.61777186]
[1769848945884,3.86925684,2630.0,2628.6,5.61777186]
[1769848946080,0.19043,2629.9,2628.4,5.61777186]
[1769848946388,3.86925684,2629.8,2628.5,5.61777186]
[1769848946571,3.87221301,2629.8,2628.5,5.62108066]
[1769848947072,3.87221301,2629.8,2627.7,3.122]
[1769848947073,3.81763889,2629.4,2627.7,6.74075364]
[1769848947275,3.62716889,2629.4,2627.8,6.74075364]
[1769848947683,3.805,2629.7,2627.4,14.98828999]
[1769848947684,3.81765889,2629.1,2627.4,14.98828999]
[1769848947880,3.81765889,2629.1,2627.4,8.24753635]
[1769848947881,3.62716889,2629.1,2627.4,8.24753635]
[1769848948082,3.78647818,2629.0,2627.6,8.41087244]
[1769848948386,3.78647818,2629.0,2627.5,6.74075364]
[1769848948586,3.78647818,2629.0,2627.6,1.6701188]
[1769848948785,3.78647818,2629.0,2627.7,1.6701188]
[1769848949083,3.78647818,2629.0,2627.9,1.6701188]
[1769848949386,3.78647818,2629.0,2627.5,1.6701188]
[1769848950180,3.78647818,2629.0,2627.8,1.6701188]
[1769848950383,3.78647818,2629.0,2627.7,1.6701188]
[1769848950680,3.97697818,2629.0,2627.4,0.00337704]
[1769848952287,3.62716889,2628.6,2627.4,0.00337704]
[1769848952491,0.15930929,2629.0,2626.7,6.74075364]
[1769848952492,3.62716889,2628.2,2626.7,6.74075364]
[1769848952790,3.62716889,2628.0,2626.4,7.5366992]
[1769848952986,3.62716889,2628.0,2626.9,1.6701188]
[1769848953180,0.55769623,2627.9,2627.0,1.6701188]
[1769848953487,3.62716889,2627.9,2626.7,1.6701188]
[1769848953788,3.62716889,2627.9,2626.6,1.6701188]
[1769848954089,4.50308358,2627.8,2626.4,3.805]
[1769848954388,3.62716889,2627.8,2626.5,1.6701188]
[1769848954589,3.62716889,2627.8,2626.7,1.6701188]
[1769848954789,3.62716889,2627.6,2626.7,1.6701188]
[1769848954979,3.62716889,2627.6,2626.7,0.00235995]
[1769848955183,0.31872775,2627.5,2626.9,1.6701188]
[1769848955583,0.31872775,2627.5,2626.7,0.00235995]
[1769848955584,3.62716889,2627.4,2626.7,0.00235995]
[1769848955783,3.62716889,2627.2,2626.0,6.74075364]
[1769848955998,3.62716889,2627.2,2625.7,10.47245284]
[1769848956187,0.71736952,2627.1,2625.7,3.7316992]
[1769848956492,3.62716889,2627.1,2625.7,3.7316992]
[1769848956886,0.87683049,2627.0,2625.7,3.73450195]
[1769848957089,0.87683049,2627.0,2625.7,9.35962852]
[1769848957287,2.526,2626.9,2624.7,6.16476941]
[1769848957588,3.813,2626.7,2623.9,3.93719699]
[1769848957890,0.15959462,2626.6,2623.9,3.93719699]
[1769848958087,0.15959462,2626.6,2624.0,9.02632656]
[1769848958289,4.15726462,2626.6,2624.1,3.93719699]
[1769848958490,4.15726462,2626.6,2624.3,3.93719699]
[1769848958691,0.19072,2625.9,2624.3,3.93719699]
[1769848958895,0.19073,2625.8,2624.4,9.02632656]
[1769848959095,0.66955035,2625.8,2624.4,9.02632656]
[1769848959292,0.47882035,2625.8,2624.0,0.00092278]
[1769848959598,0.19077,2625.3,2624.1,12.95677539]
[1769848959989,3.808,2625.6,2624.1,12.95677539]
[1769848959990,0.19078,2625.1,2624.1,9.02632656]
[1769848960299,0.3991766,2625.0,2624.1,9.02632656]
[1769848960688,3.808,2625.7,2624.6,3.93044883]
[1769848961191,4.19827921,2625.6,2624.6,3.93044883]
[1769848961592,3.20745581,2625.6,2625.0,10.49663279]
[1769848961896,1.06294525,2625.8,2625.0,3.88176626]
[1769848962195,0.00444278,2625.9,2625.1,9.02632656]
[1769848962589,3.31265089,2625.8,2625.1,9.02632656]
[1769848962789,3.31265089,2625.8,2625.3,6.61486653]
[1769848962989,3.31265089,2625.8,2625.4,6.61486653]
[1769848963287,0.00444278,2625.9,2624.6,3.93785477]
[1769848963288,3.31709367,2625.5,2624.6,3.93785477]
[1769848963489,0.19072,2625.9,2624.6,3.93785477]
[1769848963790,0.79809473,2625.7,2624.8,3.93785477]
[1769848963991,0.19072,2625.9,2624.8,3.93785477]
[1769848964189,0.2393965,2625.8,2624.9,9.02632656]
[1769848964391,0.00449251,2625.9,2625.0,3.91727752]
[1769848964694,0.07979579,2625.8,2624.9,9.02632656]
[1769848965091,0.07979579,2625.8,2625.0,3.91727752]
[1769848965297,3.81,2626.9,2625.1,3.91727752]
[1769848965492,3.85115448,2627.1,2625.1,3.91727752]
[1769848965794,0.19069,2626.3,2625.3,3.91727752]
[1769848966000,0.19069,2626.3,2625.4,9.02632656]
[1769848966197,0.19069,2626.3,2625.4,12.94360408]
[1769848966492,0.00270844,2626.3,2625.4,12.94360408]
[1769848966695,0.00270844,2626.3,2625.5,3.89624428]
[1769848967096,3.81,2626.6,2625.7,3.89624428]
[1769848967292,0.19066,2626.8,2625.7,3.89624428]
[1769848967498,0.19066,2626.8,2625.9,3.89624428]
[1769848968099,0.19534474,2626.8,2626.0,9.02361812]
[1769848968498,3.51243841,2626.8,2626.0,9.02361812]
[1769848968999,3.32177841,2626.8,2626.0,12.9216525]
[1769848969190,0.00468474,2626.8,2626.1,3.89803438]
[1769848969588,3.32177841,2626.8,2626.2,9.02361812]
[1769848969788,3.31709367,2626.7,2626.2,9.02361812]
[1769848969989,3.31709367,2626.6,2626.2,8.54333576]
[1769848970189,3.31709367,2626.5,2625.9,0.00487999]
[1769848970387,3.31709367,2626.5,2626.0,8.15943576]
[1769848970598,3.31709367,2626.4,2626.0,3.89357071]
[1769848970796,0.00468474,2626.8,2626.0,8.03628565]
[1769848971500,3.32177841,2626.8,2626.0,8.03628565]
[1769848971691,0.19067,2626.6,2625.9,9.99e-06]
[1769848971892,0.00468474,2626.8,2625.9,8.03629564]
[1769848972101,3.32177841,2626.8,2625.9,8.03629564]
[1769848972489,0.00468474,2626.8,2625.9,8.03629564]
[1769848972695,0.00468474,2626.8,2626.0,8.03628565]
[1769848972895,0.00468474,2626.8,2624.5,3.103]
[1769848972896,0.19533474,2626.8,2624.6,3.88088737]
[1769848973094,0.90895894,2626.7,2624.7,3.88088737]
[1769848973297,4.35680441,2626.7,2624.7,3.88088737]
[1769848973498,0.19072,2625.9,2624.7,3.88088737]
[1769848973700,0.19072,2625.9,2624.7,3.88472789]
[1769848973995,3.50781367,2625.9,2624.7,3.88472789]
[1769848974202,3.3968925,2625.8,2624.8,8.03628565]
[1769848974398,0.19075,2625.5,2624.8,6.19886233]
[1769848974594,3.31709367,2625.3,2624.7,0.00384052]
[1769848974791,3.31709367,2625.3,2624.7,6.20270285]
[1769848974995,3.55653577,2625.2,2624.7,6.20270285]
[1769848975208,0.2394421,2625.2,2624.7,6.20270285]
[1769848975405,3.31709367,2625.1,2624.7,6.20270285]
[1769848975701,0.19072,2626.0,2624.7,10.08359022]
[1769848975898,3.63850547,2625.6,2624.0,3.88088737]
[1769848976096,0.1908,2624.8,2622.5,2.235]
[1769848976502,0.1908,2624.8,2622.8,0.06632507]
[1769848976692,0.79834424,2624.7,2622.8,0.06632507]
[1769848977002,0.19073,2625.9,2623.2,0.19091]
[1769848977204,0.19073,2625.8,2622.9,6.912]
[1769848977500,3.63850547,2625.9,2622.9,6.912]
[1769848977501,0.19075,2625.5,2622.9,6.912]
[1769848977895,0.23958811,2625.4,2622.9,6.912]
[1769848978098,0.23958811,2625.4,2623.0,3.88088737]
[1769848978701,3.87809358,2625.4,2623.0,3.88088737]
[1769848978902,0.19077,2625.3,2623.1,3.107]
[1769848979103,0.23958811,2625.4,2623.2,3.88088737]
[1769848979399,0.79821016,2625.2,2623.2,3.88088737]
[1769848979597,0.07985966,2625.4,2623.2,3.88088737]
[1769848979794,0.19077,2625.2,2622.8,0.003846]
[1769848979992,0.19097,2622.5,2619.9,11.23160003]
[1769848980202,3.82948547,2622.4,2619.9,2.235]
[1769848980401,0.19102,2621.9,2619.7,3.811]
[1769848980706,5.12242405,2621.8,2619.7,3.811]
[1769848981000,0.00347134,2621.8,2619.7,3.81591115]
[1769848981306,3.63850547,2623.1,2619.8,0.06639891]